fUSD/lending_fUSD_20240611
["ID","MTS","AMOUNT","RATE_DAILY","PERIOD"]
[329057093,1718073076512,-4214.77,0.00029863,4]
[329057094,1718073076524,-500.0,0.00029863,4]
[329057095,1718073076535,-500.0,0.00029863,4]
[329057096,1718073076546,-4214.77,0.00029863,4]
[329057097,1718073076556,-500.0,0.00029863,4]
[329057098,1718073076568,-4214.77,0.00029863,4]
[329057099,1718073076578,-500.0,0.00029863,4]
[329057100,1718073076589,-527.19,0.00029863,4]
[329057101,1718073076600,-500.0,0.00029863,4]
[329057102,1718073076610,-526.17,0.00029863,4]
[329057103,1718073076620,-500.0,0.00029863,4]
[329057104,1718073076630,-500.0,0.00029863,4]
[329057105,1718073076639,-500.0,0.00029863,4]
[329057106,1718073076649,-500.0,0.00029863,4]
[329057107,1718073076660,-500.0,0.00029863,4]
[329057108,1718073076670,-500.0,0.00029863,4]
[329057109,1718073076680,-500.0,0.00029863,4]
[329057110,1718073076690,-522.22899772,0.00029863,4]
[329057111,1718073076700,-356.9536707,0.00029863,4]
[329057112,1718073076710,-666.44,0.00029863,4]
[329057113,1718073076720,-1832.29,0.00029863,4]
[329057114,1718073076729,-666.44,0.00029863,4]
[329057115,1718073076739,-1832.29,0.00029863,4]
[329057116,1718073076749,-666.44,0.00029863,4]
[329057117,1718073076759,-1832.29,0.00029863,4]
[329057118,1718073076770,-666.44,0.00029863,4]
[329057119,1718073076780,-1832.29,0.00029863,4]
[329057120,1718073076791,-1025.37,0.00029863,4]
[329057121,1718073076803,-666.44,0.00029863,4]
[329057122,1718073076814,-1025.37,0.00029863,4]
[329057123,1718073076824,-666.44,0.00029863,4]
[329057124,1718073076835,-1832.29,0.00029863,4]
[329057125,1718073076846,-1025.37,0.00029863,4]
[329057126,1718073076856,-666.44,0.00029863,4]
[329057127,1718073076866,-1832.29,0.00029863,4]
[329057128,1718073076877,-1025.37,0.00029863,4]
[329057129,1718073076890,-666.44,0.00029863,4]
[329057130,1718073076901,-500.0,0.00029863,4]
[329057131,1718073076913,-1832.29,0.00029863,4]
[329057132,1718073076923,-1025.37,0.00029863,4]
[329057133,1718073076933,-500.0,0.00029863,4]
[329057134,1718073076944,-666.44,0.00029863,4]
[329057135,1718073076955,-1025.37,0.00029863,4]
[329057136,1718073076966,-500.0,0.00029863,4]
[329057137,1718073076976,-518.95881313,0.00029863,4]
[329057138,1718073076990,-500.0,0.00029863,4]
[329057139,1718073077001,-666.44,0.00029863,4]
[329057140,1718073077012,-1832.29,0.00029863,4]
[329057141,1718073077024,-500.0,0.00029863,4]
[329057142,1718073077035,-500.0,0.00029863,4]
[329057143,1718073077046,-666.44,0.00029863,4]
[329057144,1718073077057,-1832.29,0.00029863,4]
[329057145,1718073077068,-1025.37,0.00029863,4]
[329057146,1718073077080,-190.84,0.00029863,4]
[329057147,1718073077090,-500.0,0.00029863,4]
[329057148,1718073077100,-1832.29,0.00029863,4]
[329057149,1718073077110,-666.44,0.00029863,4]
[329057150,1718073077120,-1025.37,0.00029863,4]
[329057151,1718073077131,-666.44,0.00029863,4]
[329057152,1718073077141,-500.0,0.00029863,4]
[329057153,1718073077151,-1025.37,0.00029863,4]
[329057154,1718073077162,-1832.29,0.00029863,4]
[329057155,1718073077173,-666.44,0.00029863,4]
[329057156,1718073077185,-500.0,0.00029863,4]
[329057157,1718073077196,-1025.37,0.00029863,4]
[329057158,1718073077209,-1832.29,0.00029863,4]
[329057159,1718073077219,-530.86,0.00029863,4]
[329057160,1718073077230,-500.0,0.00029863,4]
[329057161,1718073077240,-1025.37,0.00029863,4]
[329057162,1718073077250,-530.86,0.00029863,4]
[329057163,1718073077263,-500.0,0.00029863,4]
[329057164,1718073077273,-1832.29,0.00029863,4]
[329057165,1718073077283,-1025.37,0.00029863,4]
[329057166,1718073077293,-500.0,0.00029863,4]
[329057167,1718073077303,-530.86,0.00029863,4]
[329057168,1718073077313,-500.0,0.00029863,4]
[329057169,1718073077323,-1832.29,0.00029863,4]
[329057170,1718073077333,-1025.37,0.00029863,4]
[329057171,1718073077343,-500.0,0.00029863,4]
[329057172,1718073077353,-530.86,0.00029863,4]
[329057173,1718073077363,-500.0,0.00029863,4]
[329057174,1718073077373,-1832.29,0.00029863,4]
[329057175,1718073077383,-1025.37,0.00029863,4]
[329057176,1718073077394,-500.0,0.00029863,4]
[329057177,1718073077404,-530.86,0.00029863,4]
[329057178,1718073077414,-1832.29,0.00029863,4]
[329057179,1718073077425,-500.0,0.00029863,4]
[329057180,1718073077435,-1025.37,0.00029863,4]
[329057181,1718073077448,-530.86,0.00029863,4]
[329057182,1718073077459,-476.76895449,0.00029863,4]
[329057183,1718073077470,-1832.29,0.00029863,4]
[329057184,1718073077480,-500.0,0.00029863,4]
[329057185,1718073077490,-1025.37,0.00029863,4]
[329057186,1718073077500,-530.86,0.00029863,4]
[329057187,1718073077510,-500.0,0.00029863,4]
[329057188,1718073077522,-1832.29,0.00029863,4]
[329057189,1718073077533,-1025.37,0.00029863,4]
[329057190,1718073077547,-530.86,0.00029863,4]
[329057191,1718073077558,-500.0,0.00029863,4]
[329057192,1718073077568,-500.0,0.00029863,4]
[329057193,1718073077581,-530.86,0.00029863,4]
[329057194,1718073077593,-500.0,0.00029863,4]
[329057195,1718073077605,-530.86,0.00029863,4]
[329057196,1718073077615,-500.0,0.00029863,4]
[329057197,1718073077626,-500.0,0.00029863,4]
[329057198,1718073077636,-500.0,0.00029863,4]
[329057199,1718073077647,-500.0,0.00029863,4]
[329057200,1718073077658,-500.0,0.00029863,4]
[329057201,1718073077669,-494.67,0.00029863,4]
[329057202,1718073077680,-500.0,0.00029863,4]
[329057203,1718073077691,-3333.48,0.00029863,4]
[329057204,1718073077702,-655.64,0.00029863,4]
[329057205,1718073077712,-500.0,0.00029863,4]
[329057206,1718073077722,-3333.48,0.00029863,4]
[329057207,1718073077734,-3333.48,0.00029863,4]
[329057208,1718073077745,-655.64,0.00029863,4]
[329057209,1718073077756,-3333.48,0.00029863,4]
[329057210,1718073077766,-500.0,0.00029863,4]
[329057211,1718073077775,-655.64,0.00029863,4]
[329057212,1718073077785,-500.0,0.00029863,4]
[329057213,1718073077795,-655.64,0.00029863,4]
[329057214,1718073077806,-3333.48,0.00029863,4]
[329057215,1718073077815,-500.0,0.00029863,4]
[329057216,1718073077826,-655.64,0.00029863,4]
[329057217,1718073077836,-3333.48,0.00029863,4]
[329057218,1718073077847,-655.64,0.00029863,4]
[329057219,1718073077857,-3333.48,0.00029863,4]
[329057220,1718073077868,-500.0,0.00029863,4]
[329057221,1718073077879,-500.0,0.00029863,4]
[329057222,1718073077892,-655.64,0.00029863,4]
[329057223,1718073077909,-3333.48,0.00029863,4]
[329057224,1718073077925,-500.0,0.00029863,4]
[329057225,1718073077942,-500.0,0.00029863,4]
[329057226,1718073077955,-3333.48,0.00029863,4]
[329057227,1718073077967,-655.64,0.00029863,4]
[329057228,1718073077982,-500.0,0.00029863,4]
[329057229,1718073077996,-500.0,0.00029863,4]
[329057230,1718073078010,-3333.48,0.00029863,4]
[329057231,1718073078025,-655.64,0.00029863,4]
[329057232,1718073078038,-500.0,0.00029863,4]
[329057233,1718073078055,-500.0,0.00029863,4]
[329057234,1718073078070,-3333.48,0.00029863,4]
[329057235,1718073078085,-655.64,0.00029863,4]
[329057236,1718073078098,-500.0,0.00029863,4]
[329057237,1718073078112,-500.0,0.00029863,4]
[329057238,1718073078124,-3333.48,0.00029863,4]
[329057239,1718073078138,-500.0,0.00029863,4]
[329057240,1718073078151,-655.64,0.00029863,4]
[329057241,1718073078164,-500.0,0.00029863,4]
[329057242,1718073078176,-3333.48,0.00029863,4]
[329057243,1718073078187,-655.64,0.00029863,4]
[329057244,1718073078200,-500.0,0.00029863,4]
[329057245,1718073078211,-500.0,0.00029863,4]
[329057246,1718073078224,-3333.48,0.00029863,4]
[329057247,1718073078238,-655.64,0.00029863,4]
[329057248,1718073078249,-500.0,0.00029863,4]
[329057249,1718073078264,-583.56320402,0.00029863,4]
[329057250,1718073078277,-3333.48,0.00029863,4]
[329057251,1718073078291,-655.64,0.00029863,4]
[329057252,1718073078302,-500.0,0.00029863,4]
[329057253,1718073078313,-3333.48,0.00029863,4]
[329057254,1718073078324,-655.64,0.00029863,4]
[329057255,1718073078335,-3333.48,0.00029863,4]
[329057256,1718073078348,-655.64,0.00029863,4]
[329057257,1718073078362,-3333.48,0.00029863,4]
[329057258,1718073078376,-655.64,0.00029863,4]
[329057259,1718073078387,-11582.87,0.00029863,4]
[329057260,1718073078399,-2694.39054322,0.00029863,4]
[329057261,1718073121691,150.0,0.00013699,2]
[329057262,1718073122130,250.0,0.00014247,2]
[329057263,1718073122412,350.0,0.00014795,2]
[329057264,1718073122769,300.78852168,0.00015342,2]
[329057265,1718073154044,-1230.0,0.00015342,2]
[329057267,1718073219320,150.0,0.00014,2]
[329057268,1718073224070,453947.306736,0.00014,2]
[329057269,1718073245146,2963.62187602,0.000118,2]
[329057272,1718073304626,319.0,0.00019716,15]
[329057273,1718073305126,319.0,0.00019706,15]
[329057274,1718073305656,319.0,0.00019696,15]
[329057275,1718073310964,2805.54192398,0.000118,2]
[329057276,1718073312231,-1337.33567298,0.000118,2]
[329057277,1718073424230,1192.0,0.00019716,15]
[329057278,1718073424747,1192.0,0.00019706,15]
[329057279,1718073424969,223.0,0.00019716,15]
[329057280,1718073425253,1192.0,0.00019696,15]
[329057281,1718073425492,223.0,0.00019706,15]
[329057282,1718073426330,223.0,0.00019696,15]
[329057283,1718073544680,156.0,0.00019686,15]
[329057284,1718073545171,156.0,0.00019676,15]
[329057285,1718073545663,156.0,0.00019666,15]
[329057286,1718073664911,150.5,0.00019656,15]
[329057287,1718073665406,150.5,0.00019646,15]
[329057288,1718073665904,150.5,0.00019636,15]
[329057291,1718073897736,801.26,0.00028,90]
[329057292,1718073947200,-235.18630162,0.00011305,2]
[329057293,1718073947224,-1414.673433,0.00011306,2]
[329057294,1718073947250,-625.97046574,0.00011363,2]
[329057295,1718073947276,-304.41215653,0.00011364,2]
[329057296,1718073947302,-364.20577069,0.00011364,2]
[329057297,1718073947326,-792.16274054,0.00011365,2]
[329057298,1718073947351,-1067.92836055,0.00011365,2]
[329057299,1718073947375,-150.0,0.00011507,2]
[329057300,1718073947403,-954.60139076,0.00011534,2]
[329057301,1718073947437,-857.18693909,0.00011542,2]
[329057302,1718073947466,-300.0,0.00011543,2]
[329057303,1718073947494,-150.0,0.00011543,2]
[329057304,1718073947523,-35110.45923266,0.00011544,2]
[329057305,1718074026126,-300.0,0.00011543,2]
[329057306,1718074026152,-24666.92887897,0.00011544,2]
[329057307,1718074026178,-59025.66839582,0.00011544,2]
[329057308,1718074026203,-386.98267617,0.00011795,2]
[329057309,1718074026229,-685.37,0.00012529,2]
[329057310,1718074026256,-420.0,0.00012678,2]
[329057311,1718074026284,-210.0,0.00012698,2]
[329057312,1718074026309,-6374.58,0.0001298,2]
[329057313,1718074026334,-235.18630162,0.00013323,2]
[329057314,1718074026360,-364.20577069,0.00013323,2]
[329057315,1718074026387,-6226.18017653,0.00013324,2]
[329057316,1718074031108,-38408.01982347,0.00013324,2]
[329057317,1718074031132,-703.83,0.00013598,2]
[329057318,1718074031154,-250.0,0.00013608,2]
[329057319,1718074031176,-113.99156234,0.00013699,2]
[329057320,1718074046113,-223.42687283,0.00011544,2]
[329057321,1718074054591,-2921.98356702,0.00011544,2]
[329057322,1718074146123,-761.91736338,0.00011544,2]
[329057323,1718074146156,-364.20577069,0.00013299,2]
[329057324,1718074146193,-500.0,0.000133,4]
[329057325,1718074155182,-1100.0,0.000134,4]
[329057326,1718074155210,-1700.0,0.000135,4]
[329057327,1718074167118,-1656.07311242,0.000136,4]
[329057328,1718074233219,-364.20577069,0.00013599,2]
[329057329,1718074233230,-1411.96737122,0.000136,2]
[329057330,1718074233240,-543.92688758,0.000136,4]
[329057331,1718074233250,-150.0,0.00013698,2]
[329057334,1718074233261,-1420.12804201,0.00013699,2]
[329057336,1718074233275,-293.26397614,0.00013699,2]
[329057338,1718074233287,-650.23905597,0.00013699,2]
[329057340,1718074233300,-860.35582076,0.00013699,2]
[329057347,1718074235339,-2666.08154278,0.00013699,2]
[329057349,1718074235349,-200.0,0.00013699,2]
[329057351,1718074235359,-2800.0,0.000137,5]
[329057353,1718074235369,-220.7863537,0.000138,5]
[329057355,1718074235381,-279.2136463,0.000138,5]
[329057357,1718074235391,-80.43142271,0.000138,2]
[329057359,1718074235404,-70.55857729,0.000138,2]
[329057361,1718074235414,-470.41,0.000138,2]
[329057363,1718074235424,-499.99,0.000138,2]
[329057365,1718074235435,-370.97142271,0.000138,2]
[329057368,1718074235447,-1698.46059182,0.000138,2]
[329057370,1718074235459,-684.21873,0.000138,2]
[329057372,1718074235471,-5172.74925547,0.000138,2]
[329057374,1718074235481,-311.01,0.0001389,2]
[329057376,1718074235491,-1206.6789,0.000139,2]
[329057378,1718074235501,-3288.98410719,0.000139,2]
[329057380,1718074235511,-1735.89,0.000139,2]
[329057382,1718074235521,-499.99,0.000139,2]
[329057384,1718074235532,-500.0,0.000139,5]
[329057386,1718074235542,-1606.73999104,0.00013949,2]
[329057388,1718074235551,-1262.04972393,0.00013949,2]
[329057390,1718074235561,-299.99,0.00013949,2]
[329057392,1718074235572,-150.92,0.0001399,2]
[329057394,1718074235582,-150.92,0.0001399,2]
[329057396,1718074235592,-150.92,0.0001399,2]
[329057398,1718074235602,-150.92,0.0001399,2]
[329057400,1718074235614,-150.92,0.0001399,2]
[329057402,1718074235623,-150.92,0.0001399,2]
[329057404,1718074235633,-150.92,0.0001399,2]
[329057406,1718074235643,-150.92,0.0001399,2]
[329057408,1718074235653,-150.92,0.0001399,2]
[329057410,1718074235662,-150.92,0.0001399,2]
[329057412,1718074235672,-150.92,0.0001399,2]
[329057414,1718074235685,-150.92,0.0001399,2]
[329057416,1718074235694,-150.92,0.0001399,2]
[329057418,1718074235704,-150.92,0.0001399,2]
[329057420,1718074235714,-150.92,0.0001399,2]
[329057422,1718074235724,-150.92,0.0001399,2]
[329057424,1718074235734,-150.92,0.0001399,2]
[329057426,1718074235744,-150.92,0.0001399,2]
[329057427,1718074235754,-150.92,0.0001399,2]
[329057428,1718074235764,-150.92,0.0001399,2]
[329057429,1718074235774,-150.92,0.0001399,2]
[329057430,1718074235784,-150.92,0.0001399,2]
[329057431,1718074235795,-150.92,0.0001399,2]
[329057432,1718074235805,-150.92,0.0001399,2]
[329057433,1718074235817,-150.92,0.0001399,2]
[329057434,1718074235827,-150.92,0.0001399,2]
[329057435,1718074235838,-150.92,0.0001399,2]
[329057436,1718074235849,-150.92,0.0001399,2]
[329057437,1718074235860,-324.7938761,0.00013998,2]
[329057438,1718074235872,-1127.78283851,0.00013998,2]
[329057439,1718074235883,-1000.0,0.00013998,2]
[329057440,1718074235893,-253.72164938,0.00013998,2]
[329057441,1718074235902,-277.64172066,0.00013998,2]
[329057442,1718074235912,-299.90519513,0.00013998,2]
[329057443,1718074235922,-357.20482584,0.00013998,2]
[329057444,1718074235935,-1069.82362154,0.00013998,2]
[329057445,1718074235945,-175.31350468,0.00013998,2]
[329057446,1718074235955,-2047.3,0.00013998,6]
[329057447,1718074235965,-731937.46716873,0.00014,2]
[329057448,1718074236013,-1381.95190557,0.00014,2]
[329057449,1718074236027,-850.5,0.00014,2]
[329057450,1718074236041,-609.82349313,0.00014,2]
[329057451,1718074236052,-775.2877298,0.00014,2]
[329057452,1718074236066,-208773.48240652,0.00014,2]
[329057453,1718074236080,-550.49255264,0.00014,2]
[329057454,1718074236096,-447.53187127,0.00014,2]
[329057455,1718074239135,-77754.82728236,0.00014,2]
[329057457,1718074239147,-152289.88866687,0.00014,2]
[329057458,1718074239159,-423976.32828643,0.00014,2]
[329057459,1718074239170,-4209.38284784,0.00014,2]
[329057460,1718074239183,-813.90015,0.00014,2]
[329057461,1718074239195,-51687.08889722,0.00014,2]
[329057462,1718074239207,-1499865.0,0.00014,2]
[329057467,1718074241170,-4013.88696,0.00014,2]
[329057469,1718074241182,-4301.317335,0.00014,2]
[329057573,1718074245228,-332.26054258,0.00013949,2]
[329057575,1718074245238,-11338.71121069,0.00014,2]
[329057583,1718074245297,-66483.50840974,0.00014,2]
[329057586,1718074245363,-960.39317097,0.00014,2]
[329057587,1718074245375,-706.55085503,0.00014,2]
[329057588,1718074245387,-934.80926867,0.00014,2]
[329057589,1718074245400,-2564.60620264,0.00014,2]
[329057590,1718074245413,-1179.86580013,0.00014,2]
[329057591,1718074245424,-489.59093316,0.00014,2]
[329057592,1718074245439,-583.612171,0.00014,2]
[329057593,1718074245451,-753.000003,0.00014,2]
[329057594,1718074245462,-7976.82680112,0.00014,2]
[329057595,1718074245475,-454.18508886,0.00014,2]
[329057596,1718074245487,-152455.74576884,0.00014,2]
[329057597,1718074245500,-35240.0548998,0.00014,2]
[329057598,1718074245651,-83620.43383788,0.00014,2]
[329057600,1718074247120,-6850073.14092623,0.00014,2]
[329057602,1718074247131,-821.78355999,0.00014049,2]
[329057605,1718074247141,-23900.0,0.0001408,2]
[329057608,1718074247153,-200.0,0.00014149,2]
[329057610,1718074247163,-155.68,0.00014149,2]
[329057612,1718074247173,-250.0,0.00014384,2]
[329057613,1718074247187,-685.37,0.00014793,2]
[329057614,1718074247198,-1000.0,0.00014913,2]
[329057615,1718074247208,-518.93,0.00014915,2]
[329057616,1718074247218,-200.96142217,0.00015,2]
[329057617,1718074247228,-295938.62579409,0.00015,2]
[329057618,1718074247238,-394836.1842679,0.00015342,2]
[329057619,1718074247248,-3288.98410719,0.00015355,2]
[329057620,1718074247257,-1000.0,0.00016778,2]
[329057621,1718074247267,-3288.98410719,0.00016809,2]
[329057622,1718074247278,-163.27501377,0.000169,2]
[329057623,1718074247288,-300.0,0.00016956,2]
[329057624,1718074247298,-685.37,0.00017057,2]
[329057625,1718074247307,-29772.66896399,0.00017171,2]
[329057626,1718074247317,-548.42408113,0.00017532,2]
[329057627,1718074247328,-180.56101311,0.00017532,2]
[329057628,1718074247338,-296.50702696,0.00017532,2]
[329057629,1718074247347,-19777.11820586,0.00017532,2]
[329057630,1718074247357,-365.41154664,0.00017532,2]
[329057631,1718074247367,-22177.85189963,0.00017532,2]
[329057632,1718074247377,-518.93,0.00017655,2]
[329057633,1718074247388,-3288.98410719,0.00018264,2]
[329057634,1718074247397,-1000.0,0.00018642,2]
[329057635,1718074247407,-500.0,0.00019178,2]
[329057636,1718074247416,-500.0,0.00019178,2]
[329057637,1718074247426,-500.0,0.00019178,2]
[329057638,1718074247437,-500.0,0.00019178,2]
[329057639,1718074247447,-454.31897545,0.00019178,2]
[329057640,1718074247456,-500.0,0.00019178,2]
[329057641,1718074247466,-500.0,0.00019178,2]
[329057642,1718074247476,-500.0,0.00019178,2]
[329057643,1718074247485,-685.37,0.00019321,2]
[329057644,1718074247495,-850.0,0.00019576,15]
[329057645,1718074247505,-850.0,0.00019586,15]
[329057646,1718074247515,-850.0,0.00019596,15]
[329057647,1718074247524,-150.5,0.00019606,15]
[329057648,1718074247534,-150.5,0.00019616,15]
[329057649,1718074247543,-150.5,0.00019626,15]
[329057650,1718074247553,-1178.74367633,0.00019696,2]
[329057651,1718074247563,-3288.98410719,0.00019718,2]
[329057652,1718074247572,-584.56908985,0.000199,3]
[329057653,1718074247582,-448.96000558,0.0002,2]
[329057654,1718074247592,-3204.82705011,0.0002,2]
[329057655,1718074247602,-1537.89944686,0.0002,2]
[329057656,1718074247611,-90590.03943667,0.0002,2]
[329057657,1718074247621,-226.7178388,0.000201,2]
[329057658,1718074247630,-518.93,0.00020394,2]
[329057659,1718074247641,-1000.0,0.00020506,2]
[329057660,1718074247651,-3288.98410719,0.00021173,2]
[329057661,1718074247662,-685.37,0.00021585,2]
[329057662,1718074247673,-1262.04972392,0.00021856,2]
[329057663,1718074247683,-512.4463626,0.000219,2]
[329057664,1718074247696,-821.78355998,0.00021906,2]
[329057665,1718074247705,-250.0,0.00021918,2]
[329057666,1718074247714,-790.86878271,0.00022,2]
[329057667,1718074247724,-1000.0,0.0002237,2]
[329057668,1718074247734,-3288.98410719,0.00022627,2]
[329057669,1718074247745,-11734.0,0.000235,5]
[329057670,1718074247755,-685.37,0.00023849,2]
[329057671,1718074247765,-5094.4426917,0.00024,3]
[329057672,1718074247775,-2712.86152819,0.00024,15]
[329057673,1718074247785,-3288.98410719,0.00024082,2]
[329057674,1718074247794,-180.0,0.0002423,2]
[329057675,1718074247804,-150.6,0.00024384,2]
[329057676,1718074247815,-234.39,0.00024384,2]
[329057677,1718074247825,-4147.80642928,0.00024798,2]
[329057678,1718074247835,-4147.80642927,0.00024798,2]
[329057679,1718074247846,-4147.80642927,0.00024798,2]
[329057680,1718074247855,-4147.80642927,0.00024798,2]
[329057681,1718074247864,-4147.80642927,0.00024798,2]
[329057682,1718074247874,-4147.80642927,0.00024798,2]
[329057683,1718074247885,-4147.80642927,0.00024798,2]
[329057684,1718074247895,-6800.13647761,0.000249,2]
[329057685,1718074247905,-169.85371691,0.00025,2]
[329057686,1718074247916,-1277.51036429,0.00025,2]
[329057687,1718074247928,-326.14509392,0.00025,2]
[329057688,1718074247939,-1250.0,0.00025,2]
[329057689,1718074247948,-170.01,0.00025177,2]
[329057690,1718074247959,-480.09,0.00025296,2]
[329057691,1718074247968,-3288.98410719,0.00025536,2]
[329057692,1718074247978,-156.27003944,0.0002601,2]
[329057693,1718074247988,-155.0442262,0.00026051,2]
[329057694,1718074247997,-152.90124323,0.00026091,2]
[329057695,1718074248007,-685.37,0.00026112,2]
[329057696,1718074248018,-158.18866239,0.00026144,2]
[329057697,1718074248029,-152.90124323,0.00026159,2]
[329057698,1718074248039,-162.18716348,0.00026199,2]
[329057699,1718074248049,-155.52498408,0.00026202,2]
[329057700,1718074248061,-4147.80642927,0.00026216,2]
[329057701,1718074248073,-155.39182598,0.00026273,2]
[329057702,1718074248084,-155.29846776,0.00026278,2]
[329057703,1718074248095,-157.02578518,0.00026298,2]
[329057704,1718074248108,-152.90124323,0.00026329,2]
[329057705,1718074248118,-685.0944336,0.000264,2]
[329057706,1718074248128,-158.18866239,0.00026454,2]
[329057707,1718074248138,-162.83691156,0.00026517,2]
[329057708,1718074248148,-158.18866239,0.00026542,2]
[329057709,1718074248157,-157.02578518,0.00026632,2]
[329057710,1718074248167,-155.0442262,0.00026706,2]
[329057711,1718074248177,-157.02578518,0.00026743,2]
[329057712,1718074248187,-152.90124323,0.0002682,2]
[329057713,1718074248197,-155.51153737,0.00026897,2]
[329057714,1718074248208,-152.90124323,0.00026927,2]
[329057715,1718074248218,-3288.98410719,0.00026991,2]
[329057716,1718074248228,-1300.0,0.00027,2]
[329057717,1718074248237,-9034.61586951,0.00027004,2]
[329057718,1718074248247,-152.90124323,0.00027019,2]
[329057719,1718074248257,-162.83691156,0.00027049,2]
[329057720,1718074248267,-152.90124323,0.00027103,2]
[329057721,1718074248277,-152.90124323,0.00027132,2]
[329057722,1718074248287,-155.99201808,0.00027142,2]
[329057723,1718074248296,-152.90124323,0.00027267,2]
[329057724,1718074248306,-155.29846776,0.00027283,2]
[329057725,1718074248315,-162.83691156,0.00027288,2]
[329057726,1718074248325,-500.0,0.00027397,2]
[329057727,1718074248334,-500.0,0.00027397,2]
[329057728,1718074248344,-500.0,0.00027397,2]
[329057729,1718074248354,-500.0,0.00027397,2]
[329057730,1718074248363,-154.26367135,0.00027397,2]
[329057731,1718074248372,-177.31,0.00027397,2]
[329057732,1718074248382,-150.38,0.00027397,2]
[329057733,1718074248392,-2503.39714468,0.000274,2]
[329057734,1718074248401,-501.40609209,0.000274,2]
[329057735,1718074248410,-154.54095258,0.00027555,2]
[329057736,1718074248420,-157.02578518,0.00027715,2]
[329057737,1718074248430,-812.313062,0.00027748,2]
[329057738,1718074248443,-171.375081,0.00027748,2]
[329057739,1718074248452,-373.290067,0.00027748,2]
[329057740,1718074248461,-234.113233,0.00027748,2]
[329057741,1718074248470,-1414.842981,0.00027748,2]
[329057742,1718074248479,-158.131553,0.00027748,2]
[329057743,1718074248488,-1408.983958,0.00027748,2]
[329057744,1718074248497,-187.258411,0.00027748,2]
[329057745,1718074248507,-155.39182598,0.00027784,2]
[329057746,1718074248517,-166.76501489,0.00027812,2]
[329057747,1718074248526,-152.90124323,0.00027863,2]
[329057748,1718074248536,-3457.60096341,0.000279,10]
[329057749,1718074248545,-157.02578518,0.00027927,2]
[329057750,1718074248555,-4147.80642927,0.00027989,2]
[329057751,1718074248564,-20000.0,0.00028,14]
[329057752,1718074248574,-1043.04984144,0.00028,2]
[329057753,1718074248584,-200.28978804,0.00028,2]
[329057754,1718074248594,-812.313062,0.00028095,2]
[329057755,1718074248604,-373.290067,0.00028095,2]
[329057756,1718074248614,-1414.842981,0.00028095,2]
[329057757,1718074248624,-1408.983958,0.00028095,2]
[329057758,1718074248634,-158.18866239,0.00028097,2]
[329057759,1718074248644,-978.0,0.00028102,2]
[329057760,1718074248654,-1650.0,0.00028102,2]
[329057761,1718074248664,-1830.0,0.00028102,2]
[329057762,1718074248674,-616.0,0.00028102,2]
[329057763,1718074248684,-441.0,0.00028102,2]
[329057764,1718074248694,-1269.0,0.00028102,2]
[329057765,1718074248704,-813.85,0.00028102,2]
[329057766,1718074248714,-150.484,0.00028102,2]
[329057767,1718074248723,-2419.245,0.00028102,2]
[329057768,1718074248734,-166.123,0.00028102,2]
[329057769,1718074248744,-447.0,0.00028102,2]
[329057770,1718074248755,-1311.651,0.00028102,2]
[329057771,1718074248765,-546.0,0.00028102,2]
[329057773,1718074248775,-3176.0,0.00028102,2]
[329057774,1718074248785,-1989.088,0.00028102,2]
[329057775,1718074248796,-5816.247,0.00028102,2]
[329057776,1718074248806,-5155.0,0.00028102,2]